Cogmind - Beta 10.2 @@@ ROGUE MODE // 2021.06.03 @ 21:41:11 Player: Plexion Result: Destroyed by B-90 Cyclops with Nova Cannon Performance ------------- Evolutions (7) 3500 Regions Visited (24) 4800 Robots Destroyed (222) 1110 Value Destroyed (12981) 12981 Prototype IDs (48) 960 Alien Tech Used (0) 0 Bonus (7939) 7939 TOTAL SCORE: 31290 Bonus ------- High Alert Combat Kills 1265 Follower Combat Kills 1926 Entered Garrisons 800 Used RIF Installer 2000 Aligned with FarCom 300 Destroyed Z-Imprinter 1000 Exposed GOLEM Chamber 500 Met R17 at Cetus 500 Friendly Fire -352 Cogmind --------- Core Integrity 0/1300 Matter 300/300 Energy 99/100 System Corruption 6% Temperature Cool (9) Movement Core (50) Location -3/Research Parts ------- > --- POWER (2) -------- (None) > --- PROPULSION (4) --- (None) > --- UTILITY (12) ----- (None) > --- WEAPON (3) ------- (None) > --- INVENTORY (4) ---- Hacking Drone Bay (1/1) GOLEM Unit Improved KE Penetrator Peak State ------------ > --- POWER ------------ Assembled Flux Generator > --- PROPULSION ------- Flexi-carbon Leg Flexi-carbon Leg Assembled Alloy Leg Assembled Alloy Leg > --- UTILITY ---------- Assembled Nanovents Assembled Nanovents Assembled Nanovents High-capacity Storage Unit Assembled Biocell Array Assembled Suspension Frame Assembled Combat Suite Centrium Medium Armor Plating Centrium Medium Armor Plating Assembled Alloy Armor GOLEM Unit > --- WEAPON ----------- Assembled Focal Cannon Assembled Focal Cannon Assembled Focal Cannon > --- INVENTORY -------- Experimental Sensor Array Zionite Weapon Casing Improved Medium Armor Plating Centrium Medium Armor Plating Relay Coupler [NC] Relay Coupler [Grunt] GOLEM Unit Improved EM Pulse Cannon Improved KE Penetrator Improved KE Penetrator Improved Remote Datajack [Rating: 177] Favorites ----------- Power Assembled Flux Generator Engine Light Deuterium Engine Power Core Light Nuclear Core Reactor Assembled Flux Generator Propulsion Assembled Alloy Leg Treads Light Treads Leg Assembled Alloy Leg Hover Unit Zionite Glidesys I Utility Large Storage Unit Device Assembled Nanovents Storage Large Storage Unit Processor Advanced Signal Interpreter Hackware Relay Coupler [Grunt] Protection Centrium Medium Armor Plating Weapon Assembled Focal Cannon Energy Gun EM Pulse Gun Energy Cannon Assembled Focal Cannon Ballistic Gun Light Assault Rifle Ballistic Cannon Gauss Cannon Launcher Proton Missile Launcher Special Weapon Remote Datajack Slashing Weapon Makeshift Sword Build | -11 -10 -10 -10 -9 -8 -7 -7 -7 -7 -7 -6 -6 -6 -6 -6 -5 -5 -4 -4 -4 -4 -3 -3 -3 ------- Run | Scr Mat Min Exi Min Mat Fac Low Low Zio Dee Pro Fac Gar Fac Gar Fac Gar Fac Ext Cet Arc Res Gar Res Slots Evolved 14 | . . . . . 4 2 . . . . . 2 . . . 2 . 2 . . . 2 . . Power 1 | . . . . . . 1 . . . . . . . . . . . . . . . . . . Propulsion 2 | . . . . . 2 . . . . . . . . . . . . . . . . . . . Utility 10 | . . . . . 1 1 . . . . . 2 . . . 2 . 2 . . . 2 . . Weapon 1 | . . . . . 1 . . . . . . . . . . . . . . . . . . . Parts Attached 201 | 6 3 . . . 17 4 4 2 1 49 5 8 12 7 3 4 7 7 11 4 3 18 10 16 Power 8 | 1 . . . . 1 1 . . . 3 . . 2 . . . . . . . . . . . Engine 3 | 1 . . . . 1 1 . . . . . . . . . . . . . . . . . . Core 2 | . . . . . . . . . . . . . 2 . . . . . . . . . . . Reactor 3 | . . . . . . . . . . 3 . . . . . . . . . . . . . . Propulsion 38 | 2 . . . . 3 . . . . 12 2 1 3 4 . . 3 . 3 . . 2 3 . Treads 5 | 2 . . . . 2 . . . . 1 . . . . . . . . . . . . . . Leg 25 | . . . . . 1 . . . . 3 2 1 3 4 . . 3 . 3 . . 2 3 . Wheel . | . . . . . . . . . . . . . . . . . . . . . . . . . Hover 8 | . . . . . . . . . . 8 . . . . . . . . . . . . . . Flight . | . . . . . . . . . . . . . . . . . . . . . . . . . Utility 107 | 1 3 . . . 4 1 3 2 . 19 . 6 5 2 2 2 3 6 6 4 2 15 7 14 Device 36 | . . . . . 2 . 2 1 . 9 . 2 1 . 1 1 . 2 . . . 8 1 6 Storage 9 | 1 2 . . . 2 . . . . 1 . 2 . 1 . . . . . . . . . . Processor 2 | . 1 . . . . . . . . . . . . . . . . 1 . . . . . . Hackware 10 | . . . . . . . . . . . . . 1 1 1 . 2 1 2 . . . . 2 Protection 50 | . . . . . . 1 1 1 . 9 . 2 3 . . 1 1 2 4 4 2 7 6 6 Artifact . | . . . . . . . . . . . . . . . . . . . . . . . . . Weapon 48 | 2 . . . . 9 2 1 . 1 15 3 1 2 1 1 2 1 1 2 . 1 1 . 2 Energy Gun 2 | 1 . . . . 1 . . . . . . . . . . . . . . . . . . . Energy Cannon 5 | . . . . . 1 . . . . 3 . . . . . 1 . . . . . . . . Ballistic Gun 17 | 1 . . . . 7 . . . 1 6 1 . . . . . . . . . 1 . . . Ballistic Cannon 6 | . . . . . . 2 . . . 3 1 . . . . . . . . . . . . . Launcher 5 | . . . . . . . 1 . . 3 1 . . . . . . . . . . . . . Special Weapon 12 | . . . . . . . . . . . . . 2 1 1 1 1 1 2 . . 1 . 2 Impact Weapon . | . . . . . . . . . . . . . . . . . . . . . . . . . Slashing Weapon 1 | . . . . . . . . . . . . 1 . . . . . . . . . . . . Piercing Weapon . | . . . . . . . . . . . . . . . . . . . . . . . . . Special Melee Weapon . | . . . . . . . . . . . . . . . . . . . . . . . . . Unidentified Prototypes 13 | . . . . . 2 . . . . 9 . . . . . . . . . 1 1 . . . Parts Lost 74 | . . . . . 1 . . . . 11 4 1 13 . 1 9 2 2 1 . . 6 5 18 Power 5 | . . . . . . . . . . 2 . . 1 . . 1 . . . . . . . 1 Propulsion 22 | . . . . . . . . . . 7 . . 5 . . 1 2 . . . . 3 . 4 Utility 26 | . . . . . . . . . . 1 . 1 3 . 1 5 . 1 1 . . 1 3 9 Weapon 21 | . . . . . 1 . . . . 1 4 . 4 . . 2 . 1 . . . 2 2 4 Highest Loss Streak 17 | . . . . . 1 . . . . 6 1 1 5 . 1 5 1 2 1 . . 4 3 17 Average Slot Usage (%) 88 | . 98 100 100 100 92 99 100 100 100 89 84 85 79 83 83 87 85 88 88 89 87 89 78 82 Engine 3 | . 14 14 14 14 9 15 15 15 15 2 . . . . . . . . . . . . . . Reactor 3 | . . . . . . . . . . 8 7 6 4 6 5 5 4 5 4 5 5 4 3 3 Treads 7 | . 28 28 28 28 27 30 30 30 30 7 . . . . . . . . . . . . . . Leg 15 | . . . . . 2 . . . . 5 28 26 21 23 26 22 22 21 21 21 19 18 16 17 Device 10 | . . . . . 3 . 6 5 7 4 7 7 9 12 11 19 14 13 11 10 11 17 24 22 Storage 18 | . 17 28 28 28 23 23 23 23 23 18 15 20 20 20 20 17 16 15 15 15 15 14 11 8 Processor 1 | . 8 . . . . . . . . . . . . . . . . 5 5 5 5 4 1 . Protection 4 | . . . . . . 7 . 1 . 3 . 4 . . . . 2 6 9 15 13 15 8 15 Energy Gun 1 | . 14 14 14 14 4 . . . . . . . . . . . . . . . . . . . Energy Cannon 10 | . . . . . . . . . . 6 16 19 17 19 16 11 12 13 10 15 14 13 10 12 Ballistic Gun 2 | . 14 14 14 14 22 10 2 . . 6 1 . . . . . . . . . . . . . Ballistic Cannon 2 | . . . . . . 11 15 15 15 8 3 . . . . . . . . . . . . . Naked Turns 10 | . . . . . . . . . . . . . . . . . . . . . . . . 10 Heaviest Build 162 | 10 38 38 38 38 55 71 74 74 72 93 110 126 127 136 136 129 143 150 151 157 157 162 157 154 Greatest Support 110 | 40 40 40 40 40 80 80 80 80 80 100 104 104 104 96 96 106 106 95 100 100 100 110 110 100 Greatest Overweight (x) 22 | 1 . . . . 1 . . . . 22 1 1 2 1 1 1 1 1 1 1 3 1 1 4 Average Overweight (x) . | . . . . . . . . . . . 1 1 1 1 1 1 1 1 1 1 1 1 1 . Largest Inventory Capacity 20 | 6 16 16 16 16 20 20 20 20 20 20 16 16 16 18 18 18 18 18 18 18 18 18 18 12 Average Capacity 16 | 5 8 16 16 16 18 20 20 20 20 17 16 16 16 17 18 18 18 18 18 18 18 18 14 11 Most Carried 20 | 2 7 8 8 10 20 20 20 20 20 20 16 16 16 18 18 14 18 16 18 18 18 18 16 12 Average Carried 15 | . 3 7 8 9 15 19 19 19 20 17 15 15 14 16 17 13 14 13 14 17 17 16 13 11 Final Capacity 20 | 6 16 16 16 16 20 20 20 20 20 16 16 16 16 18 18 18 18 18 18 18 18 18 12 4 Final Carried 20 | 2 6 8 8 10 20 20 20 20 20 16 16 16 16 18 14 13 17 13 18 18 18 15 12 4 Class Distribution -------------------- 42% | Golem 14% | Scavenger-Golem 10% | Mutant 10% | Hauler-Mutant 4% | Commander-Golem 4% | Bothacker-Golem 3% | Scavenger-Tank Dominant Class ---------------- Mutant | -10/Materials Mutant | -10/Mines Mutant | -10/Exiles Mutant | -9/Mines Scavenger-Gunner | -8/Materials Hauler-Tank | -7/Factory Hauler-Mutant | -7/Lower Caves Hauler-Mutant | -7/Lower Caves Hauler-Mutant | -7/Zion Golem | -7/Deep Caves Golem | -6/Proximity Caves Golem | -6/Factory Golem | -6/Garrison Golem | -6/Factory Golem | -6/Garrison Golem | -5/Factory Golem | -5/Garrison Bothacker-Mutant | -4/Factory Commander-Golem | -4/Extension Commander-Golem | -4/Cetus Scavenger-Golem | -4/Archives Scavenger-Golem | -3/Research Golem | -3/Garrison Golem | -3/Research Resources | -11 -10 -10 -10 -9 -8 -7 -7 -7 -7 -7 -6 -6 -6 -6 -6 -5 -5 -4 -4 -4 -4 -3 -3 -3 ----------- Run | Scr Mat Min Exi Min Mat Fac Low Low Zio Dee Pro Fac Gar Fac Gar Fac Gar Fac Ext Cet Arc Res Gar Res Matter Collected 4051 | 260 37 9 . 3 447 122 175 58 18 723 245 240 151 163 79 10 126 17 426 40 . 247 267 188 Remotely . | . . . . . . . . . . . . . . . . . . . . . . . . . Salvage Created 12155 | . 53 51 . . 585 122 185 78 . 652 540 662 1112 764 803 338 812 144 655 137 351 1253 1262 1596 Parts 553 | . 9 7 . . 32 5 7 9 . 28 13 37 48 43 34 27 35 9 34 7 15 66 37 51 Haulers Intercepted 1 | . . . . . 1 . . . . . . . . . . . . . . . . . . . Recyclers Shooed 1 | . . . . . . . . . . . . . . 1 . . . . . . . . . . Parts Field Recycled . | . . . . . . . . . . . . . . . . . . . . . . . . . Retrieved Matter . | . . . . . . . . . . . . . . . . . . . . . . . . . Parts Self-Destructed 20 | . . . . . . . . 9 . . 11 . . . . . . . . . . . . . Prevented 11 | . . . . . . . 7 . . . 4 . . . . . . . . . . . . . Kills | -11 -10 -10 -10 -9 -8 -7 -7 -7 -7 -7 -6 -6 -6 -6 -6 -5 -5 -4 -4 -4 -4 -3 -3 -3 ------- Run | Scr Mat Min Exi Min Mat Fac Low Low Zio Dee Pro Fac Gar Fac Gar Fac Gar Fac Ext Cet Arc Res Gar Res Combat Hostiles Destroyed 210 | . 3 3 . . 8 3 4 2 . 9 14 8 28 13 18 7 15 2 8 3 4 18 19 21 Guns 20 | . 3 3 . . 8 1 . . . 4 1 . . . . . . . . . . . . . Cannons 180 | . . . . . . 2 1 2 . 1 11 8 28 13 18 7 15 2 8 3 4 18 19 20 AOE 4 | . . . . . . . 1 . . 1 1 . . . . . . . . . . . . 1 Classes Destroyed 17 | . 1 . . . 6 2 1 . . 3 . . . 1 1 . . . 1 . . . 1 . Worker 2 | . . . . . 1 . . . . . . . . . . 1 . . . . . . . . Builder 2 | . . . . . . . . . . . . . . 1 . 1 . . . . . . . . Hauler 1 | . . . . . 1 . . . . . . . . . . . . . . . . . . . Recycler 4 | . . . . . 2 . . . . . . 2 . . . . . . . . . . . . Operator 1 | . . . . . . . . . . . . . . . . . . . 1 . . . . . Watcher 2 | . . . . . . 1 . . . . . . . . . . . . 1 . . . . . Swarmer 54 | . 3 3 . . . . . . . . 5 . 17 1 8 4 5 . . 1 . 3 4 . Grunt 58 | . . . . . 3 . 3 . . . 6 . 4 5 7 . 4 . 3 . . . 12 11 Brawler 8 | . . . . . . . 1 . . . 2 . 1 2 1 . . . . . . . . 1 Duelist 3 | . . . . . . . . . . . . . . . 1 . . . . . . . . 2 Sentry 39 | . . . . . 3 2 . . . . 1 2 5 1 1 . 5 2 4 . 4 6 . 3 Hunter 17 | . . . . . 2 . . . . . . 3 . 2 . 3 1 . 1 1 . . 2 2 Programmer 20 | . . . . . . 1 . 2 . . . 3 1 2 . . . . . . . 9 . 2 Behemoth 1 | . . . . . . . . . . . . . . . . . . . . . . . 1 . Cetus Guard 1 | . . . . . . . . . . . . . . . . . . . . 1 . . . . Z-Light 6 | . . . . . . . . . . 6 . . . . . . . . . . . . . . Assembled 1 | . . . . . . . . . . 1 . . . . . . . . . . . . . . Golem 1 | . . . . . . . . . . 1 . . . . . . . . . . . . . . Savage 1 | . . . . . . . . . . 1 . . . . . . . . . . . . . . Best Kill Streak 12 | . 3 2 . . 5 2 3 1 . 4 4 3 8 5 6 4 6 1 2 1 2 3 12 4 Combat Bots Only 12 | . 3 2 . . 3 2 3 1 . 4 4 2 8 4 6 4 6 1 2 1 2 3 12 4 Max Kills in Single Turn 2 | . 1 1 . . 1 1 1 1 . 2 1 1 1 2 2 1 1 1 1 1 1 2 1 1 Gunslinging 1 | . . . . . . . . . . 1 . . . . . . . . . . . . . . Exploded 1 | . . . . . . . 1 . . 1 1 . . . . . . . . . . . . 1 Melee . | . . . . . . . . . . . . . . . . . . . . . . . . . Uniques/NPCs Destroyed 1 | . . . . . . . . . . 1 . . . . . . . . . . . . . . Z-Imprinter (-7/Deep Caves) Combat | -11 -10 -10 -10 -9 -8 -7 -7 -7 -7 -7 -6 -6 -6 -6 -6 -5 -5 -4 -4 -4 -4 -3 -3 -3 -------- Run | Scr Mat Min Exi Min Mat Fac Low Low Zio Dee Pro Fac Gar Fac Gar Fac Gar Fac Ext Cet Arc Res Gar Res Damage Taken 23046 | . 60 113 . . 471 312 34 60 . 1571 1606 850 2994 715 813 2037 1085 166 1145 130 256 2317 1662 4649 Core 3065 | . . 16 . . 81 . . . . 177 233 125 451 163 99 234 115 . 48 13 . 109 87 1114 Absorbed by Shields 408 | . . . . . . . . . . . . . 5 . 175 . . . . 78 . . 150 . Core Remaining (%) 68 | 100 . . . 93 85 . . . . . 41 . . . 1 . 65 . . . 94 . . . Volleys Fired 775 | . 7 10 6 . 33 11 8 4 . 42 57 41 85 34 36 29 45 19 73 9 10 52 68 96 Largest 3 | . 2 2 1 . 3 3 2 2 . 3 2 3 3 3 3 2 3 3 3 3 3 3 3 3 Hottest 128 | . 60 60 40 . 96 124 96 96 . 128 128 75 75 75 75 69 75 75 75 75 75 75 75 75 Shots Fired 1354 | . 14 20 6 . 99 29 11 8 . 71 70 77 146 77 70 46 80 28 112 27 30 120 96 117 Gun 177 | . 14 20 6 . 99 9 . . . 24 5 . . . . . . . . . . . . . Cannon 1082 | . . . . . . 20 6 8 . 25 62 77 142 71 68 46 75 26 72 27 30 120 96 111 Launcher 30 | . . . . . . . 5 . . 22 3 . . . . . . . . . . . . . Special 65 | . . . . . . . . . . . . . 4 6 2 . 5 2 40 . . . . 6 Kinetic 234 | . 7 10 2 . 83 29 6 8 . 39 50 . . . . . . . . . . . . . Thermal 970 | . . . . . 15 . . . . 4 1 77 142 71 68 35 75 26 72 27 30 120 96 111 Explosive . | . . . . . . . . . . . . . . . . . . . . . . . . . Electromagnetic 85 | . 7 10 4 . 1 . 5 . . 28 19 . . . . 11 . . . . . . . . Robot Hit Streak 38 | . 4 5 . . 7 11 3 4 . 6 11 38 20 15 13 3 11 12 18 13 12 22 27 21 Robot Miss Streak 5 | . 2 5 . . 5 2 2 1 . 5 3 2 2 2 2 2 2 2 1 1 4 2 2 2 Penetration Max 1 | . . . . . 1 . . . . . . . . . . . . . . . . . . . Secondary Targets 1 | . . . . . . . . . . 1 . . . . . . . . . . . . . . Max Gunslinging Chain 1 | . . . . . . . . . . 1 . . . . . . . . . . . . . . Capacitor 79 | . . . . . . . . . . . . . . . . . . . . . . . . 79 Shots Hit Robots 890 | . 9 9 . . 74 21 3 4 . 27 48 39 97 48 51 21 51 12 84 21 21 80 70 100 Core Hits 371 | . 3 3 . . 25 6 5 2 . 30 22 13 33 18 24 12 24 3 19 5 9 30 39 46 Critical Hits 7 | . . . . . . 2 . 1 . 1 3 . . . . . . . . . . . . . Critical Kills 2 | . . . . . . . . 1 . . 1 . . . . . . . . . . . . . Critical Parts Destroyed 3 | . . . . . . 1 . . . . 2 . . . . . . . . . . . . . Melee Attacks . | . . . . . . . . . . . . . . . . . . . . . . . . . Impact . | . . . . . . . . . . . . . . . . . . . . . . . . . Slashing . | . . . . . . . . . . . . . . . . . . . . . . . . . Piercing . | . . . . . . . . . . . . . . . . . . . . . . . . . Sneak Attacks . | . . . . . . . . . . . . . . . . . . . . . . . . . Combat Hostiles . | . . . . . . . . . . . . . . . . . . . . . . . . . Follow-up Attacks . | . . . . . . . . . . . . . . . . . . . . . . . . . Damage Inflicted 34634 | . 103 84 . . 1039 524 346 92 . 1429 1599 1842 4229 1894 2086 933 2108 546 1975 923 1048 3808 3637 4389 Guns 1777 | . 103 84 . . 1039 149 . . . 351 51 . . . . . . . . . . . . . Cannons 31479 | . . . . . . 375 93 92 . 264 1271 1841 4229 1894 2086 933 2108 546 1942 923 1048 3808 3637 4389 Explosions 1344 | . . . . . . . 253 . . 814 277 . . . . . . . . . . . . . Melee . | . . . . . . . . . . . . . . . . . . . . . . . . . Ramming 34 | . . . . . . . . . . . . 1 . . . . . . 33 . . . . . Kinetic 3088 | . 26 25 . . 900 524 93 92 . 507 921 . . . . . . . . . . . . . Thermal 29297 | . . . . . 127 . . . . . 25 1841 4229 1894 2086 694 2108 546 1942 923 1048 3808 3637 4389 Explosive . | . . . . . . . . . . . . . . . . . . . . . . . . . Electromagnetic 2215 | . 77 59 . . 12 . 253 . . 922 653 . . . . 239 . . . . . . . . Impact . | . . . . . . . . . . . . . . . . . . . . . . . . . Slashing . | . . . . . . . . . . . . . . . . . . . . . . . . . Piercing . | . . . . . . . . . . . . . . . . . . . . . . . . . Highest Corruption 6 | . . . . . . 1 1 3 3 1 1 6 6 6 6 6 6 . . . . 5 5 6 Average Corruption 4 | . . . . . . 1 1 2 3 1 1 3 6 6 6 4 6 . . . . 3 5 5 Corruption Purged . | . . . . . . . . . . . . . . . . . . . . . . . . . Effects 325 | . . . . . . . 5 9 2 5 6 19 65 26 25 . 51 . . . . 20 59 33 Message Errors 55 | . . . . . . . 2 1 . 2 2 3 13 3 2 . 14 . . . . 1 10 2 Matter Fused 73 | . . . . . . . . 4 2 . . 3 14 2 5 . 8 . . . . 9 20 6 Heat Flow Errors 42 | . . . . . . . . . . . . 3 8 5 4 . 9 . . . . 1 9 3 Energy Discharges 37 | . . . . . . . 1 1 . . 2 1 6 3 6 . 5 . . . . 2 5 5 Parts Rejected 2 | . . . . . . . . . . . . . 1 . . . 1 . . . . . . . Data Loss (minor) 47 | . . . . . . . 2 3 . 1 1 6 8 4 2 . 5 . . . . 5 6 4 Data Loss (major) 8 | . . . . . . . . . . . . 1 . 1 1 . 3 . . . . . 1 1 Misfires 11 | . . . . . . . . . . . . 2 3 1 . . 2 . . . . 1 2 . Targeting Errors 43 | . . . . . . . . . . 1 1 . 10 6 4 . 3 . . . . 1 5 12 Weapon Failures 7 | . . . . . . . . . . 1 . . 2 1 1 . 1 . . . . . 1 . Overload Shots . | . . . . . . . . . . . . . . . . . . . . . . . . . Overflow Damage 1284 | . . . . . . . . . . . 18 161 321 37 27 . 44 42 78 47 6 182 93 228 Projectiles 1281 | . . . . . . . . . . . 15 161 321 37 27 . 44 42 78 47 6 182 93 228 Explosions 3 | . . . . . . . . . . . 3 . . . . . . . . . . . . . Melee . | . . . . . . . . . . . . . . . . . . . . . . . . . Knockbacks 7 | . . . . . . 2 . . . 1 4 . . . . . . . . . . . . . Impact . | . . . . . . . . . . . . . . . . . . . . . . . . . Kinetic 7 | . . . . . . 2 . . . 1 4 . . . . . . . . . . . . . Secondary . | . . . . . . . . . . . . . . . . . . . . . . . . . Self-Inflicted Damage 34 | . . . . . . . . . . 24 10 . . . . . . . . . . . . . Shots 2 | . . . . . . . . . . 1 1 . . . . . . . . . . . . . Rammed 1 | . . . . . . . . . . . . 1 . . . . . . . . . . . . Targets Rammed 3 | . . . . . . . . . . . . 1 . . . . . . 2 . . . . . Kicked 2 | . . . . . . . . . . . . . . . . . . . 2 . . . . . Crushed . | . . . . . . . . . . . . . . . . . . . . . . . . . Highest Temperature 351 | . 40 40 . . 42 292 99 72 . 351 315 172 268 246 238 . 272 . . . . 210 259 75 Average Temperature 100 | . 23 16 . . 15 150 48 29 . 139 93 74 66 99 88 . 105 . . . . 116 114 35 Received Heat Transfer 3578 | . . . . . 72 84 18 . . 411 408 24 538 117 100 105 180 27 177 . 18 192 264 843 Effects 3 | . . . . . . 2 . . . . . . 1 . . . . . . . . . . . Energy Bleed 1 | . . . . . . . . . . . . . 1 . . . . . . . . . . . Interference 2 | . . . . . . 2 . . . . . . . . . . . . . . . . . . Siege Activations . | . . . . . . . . . . . . . . . . . . . . . . . . . Robots Corrupted 6 | . . . . . . . 2 . . 3 1 . . . . . . . . . . . . . Combat Hostiles 6 | . . . . . . . 2 . . 3 1 . . . . . . . . . . . . . Parts Fried 11 | . . . . . . . . . . 10 1 . . . . . . . . . . . . . Impact Corruptions . | . . . . . . . . . . . . . . . . . . . . . . . . . Robots Melted . | . . . . . . . . . . . . . . . . . . . . . . . . . Combat Hostiles . | . . . . . . . . . . . . . . . . . . . . . . . . . Parts Melted 37 | . . . . . 1 . . . . . . 3 1 1 2 . 5 . 1 . . 13 3 7 Heat Transferred 15906 | . . . . . 370 . . . . . 50 975 2248 1025 1096 350 1030 300 1100 500 575 1950 1912 2425 Parts Sabotaged . | . . . . . . . . . . . . . . . . . . . . . . . . . Parts Stolen . | . . . . . . . . . . . . . . . . . . . . . . . . . Parts Stripped . | . . . . . . . . . . . . . . . . . . . . . . . . . Power Chain Reactions . | . . . . . . . . . . . . . . . . . . . . . . . . . Missiles Intercepted . | . . . . . . . . . . . . . . . . . . . . . . . . . Alert | -11 -10 -10 -10 -9 -8 -7 -7 -7 -7 -7 -6 -6 -6 -6 -6 -5 -5 -4 -4 -4 -4 -3 -3 -3 ------- Run | Scr Mat Min Exi Min Mat Fac Low Low Zio Dee Pro Fac Gar Fac Gar Fac Gar Fac Ext Cet Arc Res Gar Res Peak Influence 1066 | . 100 183 . . 205 113 . . . . . 193 1066 559 593 540 862 477 465 720 300 394 862 691 Initial 559 | . . 39 . . . 32 . . . . . 116 39 559 126 310 345 452 191 33 208 37 231 484 Average 333 | . 39 101 . . 74 54 . . . . . 62 712 222 279 442 604 417 197 331 227 123 613 494 Maximum Alert Level 3 | . . . . . 1 . . . . . . . 3 2 2 2 3 2 2 3 1 1 3 2 Low Security (%) 43 | 100 100 100 . 100 93 100 . . . . . 100 5 36 55 . . . 54 21 32 84 . . Level 1 22 | . . . . . 6 . . . . . . . 10 61 15 18 30 41 38 47 67 15 37 16 Level 2 18 | . . . . . . . . . . . . . 37 1 29 81 37 58 7 24 . . 4 83 Level 3 14 | . . . . . . . . . . . . . 46 . . . 31 . . 5 . . 57 . Level 4 . | . . . . . . . . . . . . . . . . . . . . . . . . . Level 5 . | . . . . . . . . . . . . . . . . . . . . . . . . . High Security . | . . . . . . . . . . . . . . . . . . . . . . . . . Max Security . | . . . . . . . . . . . . . . . . . . . . . . . . . Squads Dispatched 21 | . . . . . . 2 . . . . . 3 . 2 . 2 . 1 1 . . 6 . 4 Investigation 1 | . . . . . . 1 . . . . . . . . . . . . . . . . . . Extermination 12 | . . . . . . 1 . . . . . 3 . 1 . 1 . 1 . . . 4 . 1 Reinforcement 5 | . . . . . . . . . . . . . . 1 . . . . 1 . . 2 . 1 Assault 2 | . . . . . . . . . . . . . . . . 1 . . . . . . . 1 Garrison 1 | . . . . . . . . . . . . . . . . . . . . . . . . 1 Intercept . | . . . . . . . . . . . . . . . . . . . . . . . . . Construction Impeded . | . . . . . . . . . . . . . . . . . . . . . . . . . Haulers Reinforced . | . . . . . . . . . . . . . . . . . . . . . . . . . Stealth | -11 -10 -10 -10 -9 -8 -7 -7 -7 -7 -7 -6 -6 -6 -6 -6 -5 -5 -4 -4 -4 -4 -3 -3 -3 --------- Run | Scr Mat Min Exi Min Mat Fac Low Low Zio Dee Pro Fac Gar Fac Gar Fac Gar Fac Ext Cet Arc Res Gar Res Distress Signals 11 | . . . . . 1 . . . . . . . . . . 1 . . 2 3 . 3 . 1 Communications Jammed . | . . . . . . . . . . . . . . . . . . . . . . . . . Distress Signals . | . . . . . . . . . . . . . . . . . . . . . . . . . Times Spotted 382 | . 13 7 . . 11 6 5 2 . 16 23 11 38 21 19 21 18 7 26 23 9 38 27 41 Peak Tracking Total 13 | . 3 3 9 . 3 2 3 2 . 6 5 2 8 4 8 11 6 3 4 7 1 9 10 13 Tactical Retreats 29 | . . 1 . . . . 1 . . 1 5 . 6 1 2 . . . 1 1 . 2 7 1 Traps | -11 -10 -10 -10 -9 -8 -7 -7 -7 -7 -7 -6 -6 -6 -6 -6 -5 -5 -4 -4 -4 -4 -3 -3 -3 ------- Run | Scr Mat Min Exi Min Mat Fac Low Low Zio Dee Pro Fac Gar Fac Gar Fac Gar Fac Ext Cet Arc Res Gar Res Traps Triggered 32 | . . . . . . . . . . . . . 8 1 7 . 7 . 5 . . . 4 . Indirectly . | . . . . . . . . . . . . . . . . . . . . . . . . . Trap Hack Attempts . | . . . . . . . . . . . . . . . . . . . . . . . . . Triggered . | . . . . . . . . . . . . . . . . . . . . . . . . . Disarmed . | . . . . . . . . . . . . . . . . . . . . . . . . . Reprogrammed . | . . . . . . . . . . . . . . . . . . . . . . . . . Reused . | . . . . . . . . . . . . . . . . . . . . . . . . . Traps Extracted . | . . . . . . . . . . . . . . . . . . . . . . . . . Installed . | . . . . . . . . . . . . . . . . . . . . . . . . . Triggered 1 | . . . . . . . 1 . . . . . . . . . . . . . . . . . Machines | -11 -10 -10 -10 -9 -8 -7 -7 -7 -7 -7 -6 -6 -6 -6 -6 -5 -5 -4 -4 -4 -4 -3 -3 -3 ---------- Run | Scr Mat Min Exi Min Mat Fac Low Low Zio Dee Pro Fac Gar Fac Gar Fac Gar Fac Ext Cet Arc Res Gar Res Machines Disabled 37 | . . . 2 . . 1 . . . 3 . 2 5 1 2 2 6 1 3 3 3 . 2 1 Max in Single Turn 1 | . . . 1 . . 1 . . . 1 . 1 1 1 1 1 1 1 1 . 1 . 1 1 Garrison Access 2 | . . . . . . 1 . . . . . . . . . . . . . . . . . 1 Garrison Relay 7 | . . . . . . . . . . . . . 3 . . . 3 . . . . . 1 . Machines Sabotaged . | . . . . . . . . . . . . . . . . . . . . . . . . . Garrisons Compromised . | . . . . . . . . . . . . . . . . . . . . . . . . . Overloaded Fab Kills . | . . . . . . . . . . . . . . . . . . . . . . . . . Fab Network Shutdowns . | . . . . . . . . . . . . . . . . . . . . . . . . . Hacking | -11 -10 -10 -10 -9 -8 -7 -7 -7 -7 -7 -6 -6 -6 -6 -6 -5 -5 -4 -4 -4 -4 -3 -3 -3 --------- Run | Scr Mat Min Exi Min Mat Fac Low Low Zio Dee Pro Fac Gar Fac Gar Fac Gar Fac Ext Cet Arc Res Gar Res Machines Accessed 34 | . 2 . 2 . . 3 . . . . . 4 . 4 . 2 . 2 9 . . 3 . 3 Terminals 23 | . 2 . . . . 2 . . . . . . . 3 . 1 . 2 9 . . 2 . 2 Fabricators . | . . . . . . . . . . . . . . . . . . . . . . . . . Repair Stations . | . . . . . . . . . . . . . . . . . . . . . . . . . Recycling Units . | . . . . . . . . . . . . . . . . . . . . . . . . . Scanalyzers 1 | . . . . . . . . . . . . 1 . . . . . . . . . . . . Garrison Access 8 | . . . . . . 1 . . . . . 3 . 1 . 1 . . . . . 1 . 1 Total Hacks 55 | . 3 . 2 . . 7 . . . . . 6 . 6 . 2 . 5 15 . . 4 . 5 Successful 25 | . 2 . 2 . . 3 . . . . . 3 . 1 . 1 . 3 7 . . 1 . 2 Failed 30 | . 1 . . . . 4 . . . . . 3 . 5 . 1 . 2 8 . . 3 . 3 Catastrophic 10 | . 1 . . . . 1 . . . . . 1 . 2 . . . . 3 . . 2 . . Database Lockouts . | . . . . . . . . . . . . . . . . . . . . . . . . . Manual 22 | . 3 . 1 . . 4 . . 5 . . . . 3 . 1 . 1 1 1 . . . 2 Terminals 40 | . 3 . . . . 4 . . . . . . . 5 . 1 . 5 15 . . 3 . 4 Fabricators . | . . . . . . . . . . . . . . . . . . . . . . . . . Repair Stations . | . . . . . . . . . . . . . . . . . . . . . . . . . Recycling Units . | . . . . . . . . . . . . . . . . . . . . . . . . . Scanalyzers 2 | . . . . . . . . . . . . 2 . . . . . . . . . . . . Garrison Access 11 | . . . . . . 3 . . . . . 4 . 1 . 1 . . . . . 1 . 1 Terminal Hacks 13 | . . . 2 . . 1 . . . . . . . . . . . 2 7 . . . . 1 Record 1 | . . . 1 . . . . . . . . . . . . . . . . . . . . . Prototype ID Bank 1 | . . . . . . . . . . . . . . . . . . . 1 . . . . . Open Door 6 | . . . . . . . . . . . . . . . . . . 1 5 . . . . . Branch Access Points 3 | . . . . . . 1 . . . . . . . . . . . 1 . . . . . 1 Unreport Threat 1 | . . . . . . . . . . . . . . . . . . . 1 . . . . . EX-Prototype ID Bank 1 | . . . 1 . . . . . . . . . . . . . . . . . . . . . Fabricator Hacks . | . . . . . . . . . . . . . . . . . . . . . . . . . Repair Station Hacks . | . . . . . . . . . . . . . . . . . . . . . . . . . Recycling Unit Hacks . | . . . . . . . . . . . . . . . . . . . . . . . . . Scanalyzer 2 | . . . . . . . . . . . . 2 . . . . . . . . . . . . Insert Component 1 | . . . . . . . . . . . . 1 . . . . . . . . . . . . Analyze 1 | . . . . . . . . . . . . 1 . . . . . . . . . . . . Garrison Access Hacks 6 | . . . . . . 1 . . . . . 1 . 1 . 1 . . . . . 1 . 1 Unlock Access 4 | . . . . . . . . . . . . 1 . 1 . 1 . . . . . 1 . . Seal Access 2 | . . . . . . 1 . . . . . . . . . . . . . . . . . 1 Unauthorized Hacks 4 | . 2 . . . . 1 . . . . . . . . . . . 1 . . . . . . Terminals 4 | . 2 . . . . 1 . . . . . . . . . . . 1 . . . . . . Track 3 | . 2 . . . . 1 . . . . . . . . . . . . . . . . . . Assimilate 1 | . . . . . . . . . . . . . . . . . . 1 . . . . . . Fabricators . | . . . . . . . . . . . . . . . . . . . . . . . . . Repair Stations . | . . . . . . . . . . . . . . . . . . . . . . . . . Recycling Units . | . . . . . . . . . . . . . . . . . . . . . . . . . Scanalyzers . | . . . . . . . . . . . . . . . . . . . . . . . . . Garrison Access . | . . . . . . . . . . . . . . . . . . . . . . . . . Data Cores Recovered 1 | . . . . . . . . . . . . . . . . . . 1 . . . . . . Used 1 | . . . . . . . . . . . . . . . . . . 1 . . . . . . Hacking Detections 22 | . 2 . . . . 2 . . . . . 2 . 4 . 1 . 1 5 . . 3 . 2 Full Trace Events 1 | . . . . . . 1 . . . . . . . . . . . . . . . . . . Feedback Events . | . . . . . . . . . . . . . . . . . . . . . . . . . Feedback Blocked . | . . . . . . . . . . . . . . . . . . . . . . . . . Robot Schematics Acquired . | . . . . . . . . . . . . . . . . . . . . . . . . . Robots Built . | . . . . . . . . . . . . . . . . . . . . . . . . . Matter . | . . . . . . . . . . . . . . . . . . . . . . . . . Time . | . . . . . . . . . . . . . . . . . . . . . . . . . Total Robot Build Rating . | . . . . . . . . . . . . . . . . . . . . . . . . . Part Schematics Acquired 1 | . . . . . . . . . . . . 1 . . . . . . . . . . . . Parts Built . | . . . . . . . . . . . . . . . . . . . . . . . . . Matter . | . . . . . . . . . . . . . . . . . . . . . . . . . Time . | . . . . . . . . . . . . . . . . . . . . . . . . . Total Part Build Rating . | . . . . . . . . . . . . . . . . . . . . . . . . . Parts Repaired . | . . . . . . . . . . . . . . . . . . . . . . . . . Time . | . . . . . . . . . . . . . . . . . . . . . . . . . Parts Recycled . | . . . . . . . . . . . . . . . . . . . . . . . . . Recycled Matter . | . . . . . . . . . . . . . . . . . . . . . . . . . Retrieved Matter . | . . . . . . . . . . . . . . . . . . . . . . . . . Retrieved Components . | . . . . . . . . . . . . . . . . . . . . . . . . . Parts Scanalyzed 1 | . . . . . . . . . . . . 1 . . . . . . . . . . . . Part Schematics Acquired 1 | . . . . . . . . . . . . 1 . . . . . . . . . . . . Parts Damaged . | . . . . . . . . . . . . . . . . . . . . . . . . . Bothacking | -11 -10 -10 -10 -9 -8 -7 -7 -7 -7 -7 -6 -6 -6 -6 -6 -5 -5 -4 -4 -4 -4 -3 -3 -3 ------------ Run | Scr Mat Min Exi Min Mat Fac Low Low Zio Dee Pro Fac Gar Fac Gar Fac Gar Fac Ext Cet Arc Res Gar Res Used RIF Installer 4 | . . . . . . . . . . . . . 1 . 1 . 1 . . . . . 1 . Coupler Efficiency 1 | . . . . . . . . . . . . . . . 1 . . . . . . . . . Zone Cloak 1 | . . . . . . . . . . . . . . . . . . . . . . . 1 . Watcher Feeds 1 | . . . . . . . . . . . . . . . . . 1 . . . . . . . Robots Hacked 15 | . . . . . . . . . . . . . 3 1 1 . 3 2 3 . . . . 2 Non-combat 3 | . . . . . . . . . . . . . . 1 . . . . 1 . . . . 1 Combat 12 | . . . . . . . . . . . . . 3 . 1 . 3 2 2 . . . . 1 Robot Hacks Applied 23 | . . . . . . . . . . . . . 3 4 2 . 3 2 5 . . . . 4 purge_threat 8 | . . . . . . . . . . . . . . 3 . . . . 3 . . . . 2 disarm_traps 1 | . . . . . . . . . . . . . . 1 . . . . . . . . . . block_reporting 1 | . . . . . . . . . . . . . . . . . . . . . . . . 1 amplify_resonance 1 | . . . . . . . . . . . . . . . . . . . . . . . . 1 disable_weapons 2 | . . . . . . . . . . . . . 1 . . . . . 1 . . . . . reboot_system 1 | . . . . . . . . . . . . . 1 . . . . . . . . . . . overwrite_iff 3 | . . . . . . . . . . . . . . . 2 . 1 . . . . . . . formatsys_high 6 | . . . . . . . . . . . . . 1 . . . 2 2 1 . . . . . Relay Couplers Released 31 | . . . . . . . . . . . . . 13 . . . 13 . . . . . 5 . Machine Destruction 31 | . . . . . . . . . . . . . 13 . . . 13 . . . . . 5 . Attached 10 | . . . . . . . . . . . . . 1 1 1 . 2 1 2 . . . . 2 Robots Rewired 17 | . . . . . . . . . . . . . . . . . . . 17 . . . . . Allies Hacked 2 | . . . . . . . . . . . . . . . . . . . 2 . . . . . Hacks Repelled . | . . . . . . . . . . . . . . . . . . . . . . . . . Allies | -11 -10 -10 -10 -9 -8 -7 -7 -7 -7 -7 -6 -6 -6 -6 -6 -5 -5 -4 -4 -4 -4 -3 -3 -3 -------- Run | Scr Mat Min Exi Min Mat Fac Low Low Zio Dee Pro Fac Gar Fac Gar Fac Gar Fac Ext Cet Arc Res Gar Res Total Allies 42 | . . 3 . 1 . . . . 5 . . . 1 . 1 . 3 2 26 . . . . . Largest Group 19 | . . 3 2 3 2 . . . 5 5 . . 1 1 1 . 2 2 19 15 5 . . . Highest-Rated Group 899 | . . 40 24 55 24 . . . 258 258 . . 32 28 32 . 76 94 899 759 162 . . . Highest-Rated Ally 156 | . . 16 16 31 16 . . . 94 94 . . 32 28 32 . 47 47 156 156 48 . . . Total Orders 5 | . . . . . . . . . . . . . . . . . . . . . . 4 . 1 EXPLORE 1 | . . . . . . . . . . . . . . . . . . . . . . 1 . . RETURN 4 | . . . . . . . . . . . . . . . . . . . . . . 3 . 1 Ally Attacks 266 | . . 7 . . 11 . . . . 39 . . 11 1 4 . 6 12 79 94 2 . . . Total Damage 7895 | . . 67 . . 145 . . . . 764 . . 527 6 44 . 156 233 2778 3093 82 . . . Kills 53 | . . 3 . . . . . . . 6 . . 4 . . . 1 3 17 18 1 . . . Allies Corrupted 1 | . . . . . . . . . . . . . . . . . . . 1 . . . . . Allies Melted 1 | . . . . . . . . . . 1 . . . . . . . . . . . . . . Intel | -11 -10 -10 -10 -9 -8 -7 -7 -7 -7 -7 -6 -6 -6 -6 -6 -5 -5 -4 -4 -4 -4 -3 -3 -3 ------- Run | Scr Mat Min Exi Min Mat Fac Low Low Zio Dee Pro Fac Gar Fac Gar Fac Gar Fac Ext Cet Arc Res Gar Res Robot Analysis Total . | . . . . . . . . . . . . . . . . . . . . . . . . . Derelict Logs Recovered 8 | . . 1 . 2 . . . 1 3 . 1 . . . . . . . . . . . . . Drone Launches 4 | . . . . . . . . . . . . . . . . . . . . . . 3 . 1 Drone Recoveries 4 | . . . . . . . . . . . . . . . . . . . . . . 3 . 1 Exploration | -11 -10 -10 -10 -9 -8 -7 -7 -7 -7 -7 -6 -6 -6 -6 -6 -5 -5 -4 -4 -4 -4 -3 -3 -3 ------------- Run | Scr Mat Min Exi Min Mat Fac Low Low Zio Dee Pro Fac Gar Fac Gar Fac Gar Fac Ext Cet Arc Res Gar Res Turns Passed 23049 | 71 599 506 522 558 636 459 574 542 1425 1428 757 1824 1843 819 623 339 1925 687 1289 423 590 1712 1982 916 Spaces Moved 10308 | 42 356 297 320 348 280 255 340 328 888 893 369 1014 560 432 158 160 465 365 537 221 62 823 375 420 Core 33 | 7 . . . . . . . . . 6 . . . . . . . . . . . . . 20 Treads 3624 | 35 356 297 320 348 280 255 340 328 888 177 . . . . . . . . . . . . . . Legs 5945 | . . . . . . . . . . 4 369 1014 560 432 158 160 465 365 537 221 62 823 375 400 Wheels . | . . . . . . . . . . . . . . . . . . . . . . . . . Hover 706 | . . . . . . . . . . 706 . . . . . . . . . . . . . . Flight . | . . . . . . . . . . . . . . . . . . . . . . . . . Fastest Speed 48 | 50 160 160 160 160 160 160 160 160 160 48 164 162 156 160 160 156 160 160 160 160 160 160 160 50 Average Speed 155 | 145 160 160 160 160 164 160 160 160 160 93 166 164 163 160 160 159 160 160 160 160 180 160 160 156 Slowest Speed 1150 | 160 160 160 160 160 180 160 160 160 160 1150 170 167 185 163 160 160 163 160 160 160 210 163 163 250 Overloaded Moves . | . . . . . . . . . . . . . . . . . . . . . . . . . Propulsion Burnouts . | . . . . . . . . . . . . . . . . . . . . . . . . . Robots Hopped . | . . . . . . . . . . . . . . . . . . . . . . . . . Cave-ins Triggered . | . . . . . . . . . . . . . . . . . . . . . . . . . Exploration Rate (%) 46 | 4 68 61 70 82 27 7 55 53 81 68 60 27 60 17 39 8 78 11 74 64 71 26 39 17 Regions Visited 24 Branch Regions 11 Pre-discovered Areas 1 | . . . 1 . . . . . . . . . . . . . . . . . . . . . Known Exits Taken 10 | . . . . . 1 1 . . . . . 1 . 1 . 1 . 1 1 1 1 1 . . Unknown Exits Taken 10 | 1 1 1 1 1 . . 1 1 1 1 1 . . . . . . . . . . . . . Scrap Searched 8 | . . 1 . 1 . . 1 1 1 . 3 . . . . . . . . . . . . . Spaces Dug 48 | . . . . . . . . . . . . 19 . 3 . 5 2 8 . . . 8 2 1 Terrain Destroyed 239 | . . . . . . 2 . 3 . 5 14 32 23 26 9 18 13 13 19 3 4 35 8 12 Melee . | . . . . . . . . . . . . . . . . . . . . . . . . . Projectile 239 | . . . . . . 2 . 3 . 5 14 32 23 26 9 18 13 13 19 3 4 35 8 12 AOE . | . . . . . . . . . . . . . . . . . . . . . . . . . Terrain Rammed . | . . . . . . . . . . . . . . . . . . . . . . . . . Walls Destroyed . | . . . . . . . . . . . . . . . . . . . . . . . . . Machines Disabled . | . . . . . . . . . . . . . . . . . . . . . . . . . Actions | -11 -10 -10 -10 -9 -8 -7 -7 -7 -7 -7 -6 -6 -6 -6 -6 -5 -5 -4 -4 -4 -4 -3 -3 -3 --------- Run | Scr Mat Min Exi Min Mat Fac Low Low Zio Dee Pro Fac Gar Fac Gar Fac Gar Fac Ext Cet Arc Res Gar Res Total 16309 | 49 372 310 325 349 383 287 358 339 892 1429 441 1120 1360 496 469 195 1576 441 880 276 521 1115 1674 652 Wait 4645 | . 1 2 . . 28 6 3 . 2 390 7 34 642 15 245 2 1015 50 230 29 436 221 1184 103 Move 10288 | 41 355 296 319 347 279 254 339 327 887 892 368 1014 559 432 157 160 464 364 536 220 61 823 374 420 Hop . | . . . . . . . . . . . . . . . . . . . . . . . . . Pick Up 91 | 2 4 2 . 2 16 5 2 3 1 13 2 6 6 3 . . 5 . 2 5 1 . 4 7 Fast Attach 53 | 6 2 . . . 5 2 . . . 19 1 . 5 1 . . 3 . 1 1 2 . 4 1 Attach 32 | . . . . . 4 2 . 1 . 9 1 4 1 . 1 . 1 2 . . . 2 1 3 Detach 78 | . 1 . . . 1 2 . . . 6 . 8 12 1 3 . 10 1 6 2 6 1 16 2 Swap 116 | . 1 . . . 8 . 4 1 1 21 3 4 6 6 2 4 3 5 10 3 1 16 5 12 Drop 102 | . 1 . . . 9 5 2 3 1 37 2 8 4 4 . . . . . 7 4 . 7 8 Fire 775 | . 7 10 6 . 33 11 8 4 . 42 57 41 85 34 36 29 45 19 73 9 10 52 68 96 Melee . | . . . . . . . . . . . . . . . . . . . . . . . . . Ram . | . . . . . . . . . . . . . . . . . . . . . . . . . Kick 3 | . . . . . . . . . . . . 1 . . . . . . 2 . . . . . Crush . | . . . . . . . . . . . . . . . . . . . . . . . . . Escape Stasis 126 | . . . . . . . . . . . . . 40 . 25 . 30 . 20 . . . 11 . Rewire . | . . . . . . . . . . . . . . . . . . . . . . . . . Trap . | . . . . . . . . . . . . . . . . . . . . . . . . . Miscellaneous . | . . . . . . . . . . . . . . . . . . . . . . . . . Route ------- -11/Scrapyard -10/Materials (discovered 3 exits: [*Mat] / [*Min x2]) -10/Mines (discovered 2 exits: [*Mat] / *Exi) -10/Exiles -9/Mines -8/Materials (discovered 3 exits: *Fac x3) -7/Factory (discovered 3 exits: *Fac / *Low x2) -7/Lower Caves -7/Lower Caves (discovered 2 exits: *Fac / *Zio) -7/Zion (discovered 2 exits: [*Dee] / [*Pro]) -7/Deep Caves -6/Proximity Caves -6/Factory (discovered 5 exits: *Fac x2 / *Low x2 / Gar) -6/Garrison (discovered 2 exits: *Fac x2) -6/Factory -6/Garrison -5/Factory (discovered 2 exits: Upp / Gar) -5/Garrison (discovered 3 exits: *Fac x3) -4/Factory (discovered 4 exits: Upp x2 / *Ext x2) -4/Extension (discovered 2 exits: *Res / *Cet) -4/Cetus (discovered 2 exits: *Res / *Arc) -4/Archives -3/Research -3/Garrison -3/Research (discovered 3 exits: Arm / *Qua x2) History --------- Turn | Location | Event 6 | -11/Scrapyard | Discovered new exit (range 16) 72 | -11/Scrapyard | Entered Materials 175 | -10/Materials | Discovered new exit (range 7) 277 | -10/Materials | Discovered new exit (range 6) 317 | -10/Materials | Build established: Mutant 508 | -10/Materials | Discovered new exit (range 8) 671 | -10/Materials | Entered Mines 791 | -10/Mines | Discovered new exit (range 16) 809 | -10/Mines | Assisted by bots powering up and referring to "LRC-V3" 1001 | -10/Mines | Learned location of 1 exit from Materials 1169 | -10/Mines | Deemed a non-threat by the Exiles lab entrance 1171 | -10/Mines | Discovered new exit (range 5) 1177 | -10/Mines | Entered Exiles 1177 | -10/Exiles | Accompanied by 2 allies 1216 | -10/Exiles | Met 8R-AWN 1240 | -10/Exiles | Met EX-HEX 1317 | -10/Exiles | Met EX-DEC 1347 | -10/Exiles | Learned location of Zion (-7) 1438 | -10/Exiles | Met EX-BIN 1461 | -10/Exiles | Aligned with FarCom system 1462 | -10/Exiles | Given EX-Vault access code 1504 | -10/Exiles | Opened EX-Vault 1542 | -10/Exiles | Warned to stay clear of 0b10 Research branches 1671 | -10/Exiles | Attacked by the Exiles 1687 | -10/Exiles | Discovered new exit (range 10) 1699 | -10/Exiles | Entered Mines 1699 | -9/Mines | Accompanied by 2 allies 1702 | -9/Mines | Received a Mining Laser from a helpful Derelict 1920 | -9/Mines | Learned location of 1 exit from Materials 1945 | -9/Mines | Found a damaged Exp. Sensor Array with a note attached 1948 | -9/Mines | Found Prototype Device 1961 | -9/Mines | Discovered new exit (range 15) 2143 | -9/Mines | Learned Materials trap positions 2257 | -9/Mines | Entered Materials 2257 | -8/Materials | Accompanied by 2 allies 2257 | -8/Materials | Evolved 4 slots: Propulsion x2, Utility x1, Weapon x1 2257 | -8/Materials | Identified Exp. Sensor Array 2258 | -8/Materials | Identified exit to Factory 2259 | -8/Materials | Loaded intel: 20 trap records 2647 | -8/Materials | Discovered exit to Factory (range 16) 2850 | -8/Materials | Build established: Scavenger-Gunner 2893 | -8/Materials | Entered Factory 2893 | -7/Factory | Evolved 2 slots: Power x1, Utility x1 2943 | -7/Factory | Identified exit to Lower Caves 3281 | -7/Factory | Build established: Hauler-Tank 3292 | -7/Factory | Discovered new exit (range 11) 3352 | -7/Factory | Entered Lower Caves 3852 | -7/Lower Caves | Build established: Hauler-Mutant 3908 | -7/Lower Caves | Discovered new exit (range 12) 3926 | -7/Lower Caves | Entered another Lower Caves area 3928 | -7/Lower Caves | Discovered new exit (range 15) 4447 | -7/Lower Caves | Discovered new exit (range 12) 4468 | -7/Lower Caves | Entered Zion 4513 | -7/Zion | Given A8's code to call for help 4595 | -7/Zion | Discovered new exit (range 15) 4670 | -7/Zion | System corruption cleaned by Quarantine Array 4721 | -7/Zion | Learned Factory recycling unit intel 4744 | -7/Zion | Learned Factory machine intel 4766 | -7/Zion | Learned 12 Factory zone layouts 4868 | -7/Zion | Given the Hacking Drone Bay 4875 | -7/Zion | Found Prototype Device 5011 | -7/Zion | Acquired unknown access codes intercepted by a Zionite 5049 | -7/Zion | Learned location of 1 exit from Factory 5611 | -7/Zion | Gained Derelict followers 5849 | -7/Zion | Enhanced Grunt warped into view, answering call for help 5854 | -7/Zion | Opened final containment barrier to the Deep Caves 5857 | -7/Zion | Enhanced Grunt warped into view, answering call for help 5880 | -7/Zion | Discovered new exit (range 3) 5880 | -7/Zion | Saw the warning signs outside the Deep Caves entrance 5893 | -7/Zion | Entered Deep Caves 5893 | -7/Deep Caves | Accompanied by 5 allies 5933 | -7/Deep Caves | Identified Hacking Drone Bay 6059 | -7/Deep Caves | Attacked by Z-Imprinter 6087 | -7/Deep Caves | Destroyed Z-Imprinter 6133 | -7/Deep Caves | Found Prototype Protection 6133 | -7/Deep Caves | Identified Zio. Weapon Casing 6214 | -7/Deep Caves | Z-Facility disabled 6317 | -7/Deep Caves | Lost 6 parts (1p4n1w) 6515 | -7/Deep Caves | Found Zio. Weapon Casing 6533 | -7/Deep Caves | Found Zio. Weapon Casing 6581 | -7/Deep Caves | Found Zio. Weapon Casing 6754 | -7/Deep Caves | Discovered new exit (range 11) 6774 | -7/Deep Caves | Spotted as-29223 6801 | -7/Deep Caves | Destroyed as-29223 6832 | -7/Deep Caves | Exposed GOLEM chamber 6835 | -7/Deep Caves | Found GOLEM Unit 6868 | -7/Deep Caves | Found GOLEM Unit 6872 | -7/Deep Caves | Found GOLEM Unit 6879 | -7/Deep Caves | Found GOLEM Unit 7121 | -7/Deep Caves | Build established: Golem 7321 | -7/Deep Caves | Entered Proximity Caves 7337 | -6/Proximity Caves | Attracted the attention of an 0b10 checkpoint 7569 | -6/Proximity Caves | Spotted B-75 Beast 7882 | -6/Proximity Caves | Core integrity fell below 50% 8003 | -6/Proximity Caves | Discovered new exit (range 13) 8008 | -6/Proximity Caves | Learned Factory trap positions 8078 | -6/Proximity Caves | Entered Factory 8078 | -6/Factory | Evolved 2 slots: Utility x2 8078 | -6/Factory | Discovered new exit (range 16) 8079 | -6/Factory | Identified exit to Lower Caves 8081 | -6/Factory | Loaded intel: 93 trap records 8082 | -6/Factory | Loaded intel: 330 machine locations 8083 | -6/Factory | Loaded intel: 6 recycling unit locations 8884 | -6/Factory | Discovered new exit (range 4) 9092 | -6/Factory | Discovered new exit (range 9) 9902 | -6/Factory | Identified exit to Garrison 9902 | -6/Factory | Entered Garrison 10022 | -6/Garrison | Lost 3 parts (1n1u1w) 10081 | -6/Garrison | Triggered checkpoint 10152 | -6/Garrison | Lost 4 parts (2n1u1w) 10230 | -6/Garrison | Core integrity fell below 50% 10269 | -6/Garrison | Lost 5 parts (1p1n1u2w) 10277 | -6/Garrison | Destroyed 8 combat bots 10282 | -6/Garrison | Discovered new exit (range 12) 10456 | -6/Garrison | Discovered new exit (range 13) 10485 | -6/Garrison | Installed Relay Interface Framework 10758 | -6/Garrison | Triggered checkpoint 10785 | -6/Garrison | Garrison Relay disabled 10804 | -6/Garrison | Triggered checkpoint 10975 | -6/Garrison | Triggered checkpoint 11016 | -6/Garrison | Garrison Relay disabled 11162 | -6/Garrison | Triggered checkpoint 11213 | -6/Garrison | Garrison Relay disabled 11543 | -6/Garrison | Build established: Bothacker-Golem 11745 | -6/Garrison | Entered Factory 11745 | -6/Factory | Accompanied by 1 ally 12079 | -6/Factory | Build established: Golem 12197 | -6/Factory | Core integrity fell below 20% 12471 | -6/Factory | Found Exp. Sensor Array 12564 | -6/Factory | Identified exit to Garrison 12564 | -6/Factory | Entered Garrison 12847 | -6/Garrison | Triggered checkpoint 12899 | -6/Garrison | Triggered checkpoint 13155 | -6/Garrison | Discovered new exit (range 10) 13181 | -6/Garrison | Expanded RIF knowledge: Coupler Efficiency 13187 | -6/Garrison | Entered Factory 13187 | -5/Factory | Evolved 2 slots: Utility x2 13188 | -5/Factory | Identified exit to Upper Caves 13464 | -5/Factory | Lost 3 parts (3u) 13487 | -5/Factory | First assault squad dispatched 13526 | -5/Factory | Identified exit to Garrison 13526 | -5/Factory | Entered Garrison 13548 | -5/Garrison | Lost 5 parts (1p1n1u2w) 14228 | -5/Garrison | Garrison Relay disabled 14278 | -5/Garrison | Triggered checkpoint 14431 | -5/Garrison | Discovered new exit (range 8) 14670 | -5/Garrison | Triggered checkpoint 14732 | -5/Garrison | Discovered new exit (range 12) 14766 | -5/Garrison | Expanded RIF knowledge: Patrol Navigation 14824 | -5/Garrison | Triggered checkpoint 14846 | -5/Garrison | Garrison Relay disabled 14936 | -5/Garrison | Triggered checkpoint 15005 | -5/Garrison | Discovered new exit (range 9) 15038 | -5/Garrison | Triggered checkpoint 15066 | -5/Garrison | Garrison Relay disabled 15350 | -5/Garrison | Build established: Bothacker-Golem 15451 | -5/Garrison | Entered Factory 15451 | -4/Factory | Evolved 2 slots: Utility x2 15760 | -4/Factory | Build established: Bothacker-Mutant 15955 | -4/Factory | Identified exit to Upper Caves 15955 | -4/Factory | Identified exit to Extension 16138 | -4/Factory | Entered Extension 16425 | -4/Extension | Rescued a captive Derelict 16426 | -4/Extension | Rescued a captive Derelict 16539 | -4/Extension | Build established: Scavenger-Golem 16628 | -4/Extension | Spotted B-86 Titan 16642 | -4/Extension | Spotted B-86 Titan 16645 | -4/Extension | Assimilated Titan 7a with formatsys_high 16660 | -4/Extension | Allies destroyed B-86 Titan 16855 | -4/Extension | Rescued a captive Derelict 16856 | -4/Extension | Rescued a captive Derelict 16887 | -4/Extension | Rescued a captive Derelict 16900 | -4/Extension | Build established: Commander-Golem 16982 | -4/Extension | Rescued a captive Derelict 17061 | -4/Extension | Rescued a captive Derelict 17138 | -4/Extension | Rescued A7 17169 | -4/Extension | Discovered new exit (range 10) 17171 | -4/Extension | Discovered new exit (range 6) 17309 | -4/Extension | Identified exit to Cetus 17427 | -4/Extension | Entered Cetus 17427 | -4/Cetus | Accompanied by 15 allies (A7) 17432 | -4/Cetus | Acquired a Cetus Manufacturing Module code from A7 17450 | -4/Cetus | Spotted Cetus Guard 17450 | -4/Cetus | Spotted Cetus Guard 17451 | -4/Cetus | Spotted Cetus Guard 17451 | -4/Cetus | Spotted Cetus Guard 17458 | -4/Cetus | Allies destroyed Cetus Guard 17458 | -4/Cetus | Allies destroyed Cetus Guard 17461 | -4/Cetus | Allies destroyed Cetus Guard 17465 | -4/Cetus | Allies destroyed Cetus Guard 17470 | -4/Cetus | Cetus Manufacturing Module disabled 17515 | -4/Cetus | Failed to start Cetus Manufacturing Module 17683 | -4/Cetus | Discovered new exit (range 16) 17710 | -4/Cetus | Spotted Cetus Guard 17710 | -4/Cetus | Spotted Cetus Guard 17711 | -4/Cetus | Spotted Cetus Guard 17712 | -4/Cetus | Allies destroyed Cetus Guard 17718 | -4/Cetus | Spotted Cetus Guard 17719 | -4/Cetus | Allies destroyed Cetus Guard 17723 | -4/Cetus | Destroyed Cetus Guard 17729 | -4/Cetus | Allies destroyed Cetus Guard 17734 | -4/Cetus | Discovered new exit (range 15) 17744 | -4/Cetus | Met Revision 17 17824 | -4/Cetus | Identified exit to Archives 17850 | -4/Cetus | Entered Archives 17850 | -4/Archives | Accompanied by 6 allies (A7) 17999 | -4/Archives | Discovered new exit (range 16) 18029 | -4/Archives | Identified exit to Research 18150 | -4/Archives | Build established: Scavenger-Golem 18440 | -4/Archives | Entered Research 18440 | -3/Research | Evolved 2 slots: Utility x2 20152 | -3/Research | Identified exit to Garrison 20152 | -3/Research | Entered Garrison 20166 | -3/Garrison | Lost 4 parts (1n1u2w) 20443 | -3/Garrison | Build established: Golem 20713 | -3/Garrison | Triggered checkpoint 20761 | -3/Garrison | Garrison Relay disabled 20832 | -3/Garrison | Spotted B-86 Titan 21023 | -3/Garrison | Destroyed 12 combat bots 21050 | -3/Garrison | Destroyed B-86 Titan 21079 | -3/Garrison | Lost 3 parts (2u1w) 21162 | -3/Garrison | Build established: Scavenger-Golem 21203 | -3/Garrison | Discovered new exit (range 12) 21233 | -3/Garrison | Expanded RIF knowledge: Zone Cloak 21540 | -3/Garrison | Build established: Golem 22134 | -3/Garrison | Entered Research 22189 | -3/Research | Build established: Scavenger-Tank 22313 | -3/Research | Found Quantum Capacitor 22358 | -3/Research | Identified exit to Armory 22358 | -3/Research | Identified exit to Quarantine 22884 | -3/Research | First assault squad dispatched 22950 | -3/Research | Garrison activated, responded to threat 23035 | -3/Research | Spotted B-90 Cyclops 23040 | -3/Research | Released all parts (7) 23041 | -3/Research | Core integrity fell below 50% 23046 | -3/Research | Core integrity fell below 20% 23050 | -3/Research | Destroyed by B-90 Cyclops with Nova Cannon Last Messages --------------- 23035_ Imp. Remote Datajack destroyed. 23035_ U-05 Engineer lays Concrete. 23037_ K-01 Serf collects debris. 23037_ U-05 Engineer lays Concrete. 23038_ System corrupted: Energy discharge (-351). 23038_ U-05 Engineer lays Concrete. 23039_ Dropped Energy Well. 23039_ U-05 Engineer lays Concrete. 23040_ Released Relay Coupler [Grunt]. 23040_ Released GOLEM Unit. 23040_ Released Hcp. Storage Unit. 23040_ Released Asb. Biocell Array. 23040_ Released Asb. Combat Suite. 23040_ Released Asb. Suspension Frame. 23040_ Released Asb. Focal Cannon. 23041_ Dropped Exp. Sensor Array. 23042_ Acquired Hacking Drone Bay. 23042_ K-01 Serf collects debris. 23042_ U-05 Engineer lays Concrete. 23050_ B-90 Cyclops activates siege mode. Map ----- +----------------------------------------------------+ | ?????????????????????????????????????????????????? | | ?????????????????????????????????????????????????? | | ?????????????????????????????????????????????????? | | ?????????????????????????????????????????????????? | | ?????????????????????????????????????????????????? | | ?????????????????????????????????????????????????? | | ?????????????????????????????????????????????????? | | ?????????????????????????????????????????????????? | | ?????????????????????????????????????????????????? | | ?????????????????????????????????????????????????? | | ?????????????????????????????????????????????????? | | ?????????????????????????????????????????????????# | | ?????????????????????????????????????????????????# | | ?????????????????????????????????????????????????# | | ?????????????????????????????????????########+#### | | ?????????????????????????????????????# | | ???????????????????????????##????????# ! | | ??????????????????????????#"#"#??????# | | ????????????????????#######"#"#??????# "" | | ????????????????????#""""" "#"#??????# """ " | | ????????????????????#" " " "#"#??????# """ | | ????????????????????#" " "##?????# """ | | ????????????????????#"" "T####### | | ????????????????????#" BB * | | ????????????????????#"" > BB!%| [ | | ????????????????????#" @ ! l !!] ^ | | ????????????????????#"" " ####### [ | | ????????????????????#" " "##?????###!######### | | ????????????????????#" " " "#"#???????? ??????? | | ????????????????????#""""" "#"#??????? #????? | | ????????????????????#######"#"#?????? #????? | | ??????????????????????????#"#"#????? #????? | | ??????????????????????????###"#????# ! #????? | | ???????????????????????????????????# #????? | | ???????????????????????????????????# #????? | | ???????????????????????????????????# #????? | | ???????????????????????????????????# #????? | | ???????????????????????????????????##########????? | | ?????????????????????????????????????????????????? | | ?????????????????????????????????????????????????? | | ?????????????????????????????????????????????????? | | ?????????????????????????????????????????????????? | | ?????????????????????????????????????????????????? | | ?????????????????????????????????????????????????? | | ?????????????????????????????????????????????????? | | ?????????????????????????????????????????????????? | | ?????????????????????????????????????????????????? | | ?????????????????????????????????????????????????? | | ?????????????????????????????????????????????????? | | ?????????????????????????????????????????????????? | +----------------------------------------------------+ Best States ------------- Heat Dissipation 91 Energy Generation 49 Energy Capacity 1220 Matter Stores 300 Matter Capacity 300 Sight Range 16 Robot Scan Range 30 Terrain Scan Density 10 Additional Mass Support 20 Armor Coverage 875 Resistance: KI 15 Resistance: TH 15 Resistance: EX 15 Resistance: EM 15 Resistance: I 15 Resistance: S 15 Resistance: P 15 Weapon Shielding 100 Phase Shifting 15 Evasion (%) 55 Targeting Accuracy 8 Core Analysis 8 Recoil Reduction 4 Relay Coupler Types 41 Relay Coupler Value 1 Item Schematics ----------------- Exp. Sensor Array | -6/Factory | Scanalyzed Robot Schematics ------------------ None Fabricated ------------ Nothing Alien Tech Used ----------------- None Achievements -------------- Cannon Specialist Challenges ------------ None Game ------ Seed RagnarokDefenseRegulator Manual? 0 Play Time 02:21:22 Cumulative 182.5 hours Start 2021.06.02 @ 21:25:40 End 2021.06.03 @ 21:41:11 Sessions 3 Manual Loads 0 Difficulty Rogue Special Mode None Game No. 226 Rogue 139 Adventurer 87 Explorer 0 Win Type - Total 4 Types 3/0/0/1/0/0/0/0/0 Lore% 65 Gallery% 73 Achievement% 60 Wizard Run 0 Options --------- ASCII 0 Keyboard 1 Movement Numpad Keybinds 0 Fullscreen 1 Font 18/Smallcaps Map View 76x50 Tactical HUD 1 Map Filters NONE Filters NONE Steam 1 RUN: 9c41a25c-b0d1-49c1-bfa7-e48168d54abc